[Event "FIDE Women World Blitz 2021"]
[Site "Warsaw"]
[Date "2021.12.29"]
[Round "2.22"]
[White "Socko, Monika"]
[Black "Bartel, Marta"]
[Result "1-0"]
[ECO "D85"]
[WhiteElo "2393"]
[BlackElo "2192"]
[Annotator "NA"]
[PlyCount "83"]
[EventDate "2021.12.29"]
[EventType "swiss"]
[EventCountry "POL"]
[Tiebreak "Cut1 Buchholz"]
[SourceTitle "playchess.com"]
[Source "ChessBase"]
[SourceQuality "1"]
[TimeControl "180+2"]

1. d4 {[%emt 0:00:01]} Nf6 {[%emt 0:00:01]} 2. c4 {[%emt 0:00:01]} g6 {[%emt 0:
00:01]} 3. Nc3 {[%emt 0:00:01]} d5 {[%emt 0:00:01]} 4. cxd5 {[%emt 0:00:01]}
Nxd5 {[%emt 0:00:00]} 5. e4 {[%emt 0:00:01]} Nxc3 {[%emt 0:00:01]} 6. bxc3 {
[%emt 0:00:01]} Bg7 {[%emt 0:00:02]} 7. Qa4+ {[%emt 0:00:02]} Bd7 {[%emt 0:00:
05]} 8. Qa3 {[%emt 0:00:01]} O-O {[%emt 0:00:08]} 9. Nf3 {[%emt 0:00:13]} b6 {
[%emt 0:00:17]} 10. Be2 {[%emt 0:00:12]} Bc6 {[%emt 0:00:01]} 11. d5 {[%emt 0:
00:35]} Bb7 {[%emt 0:00:01]} 12. Bb2 {[%emt 0:00:03]} c6 {[%emt 0:00:01]} 13.
c4 {[%emt 0:00:04]} cxd5 {[%emt 0:00:16]} 14. cxd5 {[%emt 0:00:03]} Bxb2 {
[%emt 0:00:07]} 15. Qxb2 {[%emt 0:00:01]} Nd7 {[%emt 0:00:01]} 16. O-O {
[%emt 0:00:19]} Rc8 {[%emt 0:00:01]} 17. Rad1 {[%emt 0:00:07]} Nc5 {[%emt 0:00:
01]} 18. Qd4 {[%emt 0:00:03]} Qd7 {[%emt 0:00:20]} 19. Qe3 {[%emt 0:00:17]} Na4
{[%emt 0:00:23]} 20. Qh6 {[%emt 0:00:07]} f6 {[%emt 0:00:00]} 21. Rd4 {[%emt 0:
00:07]} Nc3 {[%emt 0:00:11]} 22. Bc4 {[%emt 0:00:06]} b5 {[%emt 0:00:23]} 23.
Bd3 {[%emt 0:00:00]} Qd6 {[%emt 0:00:13]} 24. e5 {[%emt 0:00:06]} fxe5 {
[%emt 0:00:02]} 25. Ng5 {[%emt 0:00:09]} Rf7 {[%emt 0:00:15]} 26. Nxf7 {
[%emt 0:00:02]} Kxf7 {[%emt 0:00:01]} 27. Qxh7+ {[%emt 0:00:06]} Ke8 28. Bxg6+
{[%emt 0:00:02]} Kd8 29. Rd2 {[%emt 0:00:10]} Bxd5 {[%emt 0:00:12]} 30. Bf5 {
[%emt 0:00:03]} e6 {[%emt 0:00:09]} 31. Bg6 {[%emt 0:00:07]} Rc4 {[%emt 0:00:
10]} 32. Bh5 {[%emt 0:00:10]} Rd4 {[%emt 0:00:09]} 33. Rxd4 {[%emt 0:00:05]}
exd4 {[%emt 0:00:01]} 34. Qh8+ {[%emt 0:00:00]} Ke7 {[%emt 0:00:09]} 35. Qxd4 {
[%emt 0:00:04]} b4 {[%emt 0:00:00]} 36. Qxa7+ {[%emt 0:00:03]} Kf6 37. Qd4+ {
[%emt 0:00:02]} Ke7 {[%emt 0:00:01]} 38. Re1 {[%emt 0:00:04]} Kd7 {[%emt 0:00:
08]} 39. h3 {[%emt 0:00:06]} Qc6 {[%emt 0:00:06]} 40. Bf3 {[%emt 0:00:03]} Kc7
{[%emt 0:00:04]} 41. Bxd5 {[%emt 0:00:02]} exd5 {[%emt 0:00:01]} 42. Qxb4 {
[%emt 0:00:03]} 1-0

[Event "FIDE Women World Blitz 2021"]
[Site "Warsaw"]
[Date "2021.12.29"]
[Round "2.23"]
[White "Efimenko, Maria"]
[Black "Kurmangaliyeva, Liya"]
[Result "1/2-1/2"]
[ECO "B22"]
[WhiteElo "2207"]
[BlackElo "2222"]
[Annotator "NA"]
[PlyCount "105"]
[EventDate "2021.12.29"]
[EventType "swiss"]
[EventCountry "POL"]
[Tiebreak "Cut1 Buchholz"]
[SourceTitle "playchess.com"]
[Source "ChessBase"]
[SourceQuality "1"]
[TimeControl "180+2"]

1. e4 {[%emt 0:00:01]} c5 {[%emt 0:00:02]} 2. c3 {[%emt 0:00:01]} Nf6 {[%emt 0:
00:03]} 3. e5 {[%emt 0:00:01]} Nd5 {[%emt 0:00:01]} 4. d4 {[%emt 0:00:01]} cxd4
{[%emt 0:00:03]} 5. cxd4 {[%emt 0:00:01]} d6 {[%emt 0:00:01]} 6. Nf3 {[%emt 0:
00:05]} Nc6 {[%emt 0:00:02]} 7. Bc4 {[%emt 0:00:01]} dxe5 {[%emt 0:00:13]} 8.
dxe5 {[%emt 0:00:02]} Ndb4 {[%emt 0:00:01]} 9. Qb3 {[%emt 0:00:01]} e6 {
[%emt 0:00:02]} 10. O-O {[%emt 0:00:16]} Na5 {[%emt 0:00:02]} 11. Bb5+ {
[%emt 0:00:07]} Bd7 {[%emt 0:00:04]} 12. Qa4 {[%emt 0:00:02]} Bxb5 {[%emt 0:00:
21]} 13. Qxb5+ {[%emt 0:00:01]} Nbc6 {[%emt 0:00:01]} 14. Nc3 {[%emt 0:00:33]}
a6 {[%emt 0:00:03]} 15. Qe2 {[%emt 0:00:02]} Be7 {[%emt 0:00:15]} 16. Rd1 {
[%emt 0:00:23]} Qc7 {[%emt 0:00:03]} 17. Bf4 {[%emt 0:00:02]} O-O {[%emt 0:00:
07]} 18. Bg3 {[%emt 0:00:01]} Rfd8 {[%emt 0:00:08]} 19. h3 {[%emt 0:00:11]} b5
{[%emt 0:00:06]} 20. Rac1 {[%emt 0:00:07]} Qb6 {[%emt 0:00:07]} 21. Ne4 {
[%emt 0:00:09]} h6 {[%emt 0:00:18]} 22. Bf4 {[%emt 0:00:07]} Rxd1+ {[%emt 0:00:
22]} 23. Rxd1 {[%emt 0:00:03]} Rd8 {[%emt 0:00:01]} 24. Nd6 {[%emt 0:00:09]}
Nb7 {[%emt 0:00:12]} 25. Nxb7 {[%emt 0:00:34]} Qxb7 {[%emt 0:00:02]} 26. Rc1 {
[%emt 0:00:01]} Nb4 {[%emt 0:00:05]} 27. Ra1 {[%emt 0:00:19]} Qd5 {[%emt 0:00:
07]} 28. a3 {[%emt 0:00:03]} Nd3 {[%emt 0:00:02]} 29. Be3 {[%emt 0:00:01]} Qb3
{[%emt 0:00:06]} 30. Bd4 {[%emt 0:00:05]} Nf4 {[%emt 0:00:08]} 31. Qe3 {
[%emt 0:00:03]} Qxe3 {[%emt 0:00:05]} 32. Bxe3 {[%emt 0:00:02]} Nd5 {[%emt 0:
00:07]} 33. Bd4 {[%emt 0:00:03]} Rc8 {[%emt 0:00:01]} 34. Rd1 {[%emt 0:00:03]}
a5 {[%emt 0:00:03]} 35. Kh2 {[%emt 0:00:09]} b4 {[%emt 0:00:03]} 36. axb4 {
[%emt 0:00:02]} axb4 {[%emt 0:00:02]} 37. Rd3 {[%emt 0:00:05]} Rc2 {[%emt 0:00:
04]} 38. Rd2 {[%emt 0:00:03]} Rc4 {[%emt 0:00:12]} 39. Rd3 {[%emt 0:00:03]} Bc5
{[%emt 0:00:02]} 40. Bxc5 {[%emt 0:00:08]} Rxc5 {[%emt 0:00:01]} 41. Nd4 {
[%emt 0:00:01]} Rc4 {[%emt 0:00:05]} 42. Kg3 {[%emt 0:00:02]} g5 {[%emt 0:00:
03]} 43. Kf3 {[%emt 0:00:02]} Nf4 {[%emt 0:00:03]} 44. Rd2 {[%emt 0:00:01]} Ng6
{[%emt 0:00:04]} 45. Ke4 {[%emt 0:00:04]} Ne7 {[%emt 0:00:12]} 46. Rc2 {
[%emt 0:00:01]} Rxc2 47. Nxc2 {[%emt 0:00:01]} Nd5 {[%emt 0:00:09]} 48. g3 {
[%emt 0:00:01]} Kg7 {[%emt 0:00:06]} 49. Nd4 {[%emt 0:00:01]} Kg6 {[%emt 0:00:
02]} 50. Nc6 {[%emt 0:00:05]} f6 {[%emt 0:00:05]} 51. exf6 {[%emt 0:00:02]}
Kxf6 {[%emt 0:00:01]} 52. f3 {[%emt 0:00:02]} h5 {[%emt 0:00:01]} 53. Nd4 {
[%emt 0:00:02]} 1/2-1/2

[Event "FIDE Women World Blitz 2021"]
[Site "Warsaw"]
[Date "2021.12.29"]
[Round "2.24"]
[White "Buksa, Nataliya"]
[Black "Hryzlova, Sofiia"]
[Result "1-0"]
[ECO "D00"]
[WhiteElo "2199"]
[BlackElo "2097"]
[Annotator "NA"]
[PlyCount "45"]
[EventDate "2021.12.29"]
[EventType "swiss"]
[EventCountry "POL"]
[Tiebreak "Cut1 Buchholz"]
[SourceTitle "playchess.com"]
[Source "ChessBase"]
[SourceQuality "1"]
[TimeControl "180+2"]

1. d4 {[%emt 0:00:01]} Nf6 {[%emt 0:00:01]} 2. Nc3 {[%emt 0:00:00]} e6 {
[%emt 0:00:05]} 3. Bf4 {[%emt 0:00:02]} d5 {[%emt 0:00:02]} 4. Nb5 {[%emt 0:00:
01]} Na6 {[%emt 0:00:02]} 5. e3 {[%emt 0:00:01]} Be7 {[%emt 0:00:02]} 6. Nf3 {
[%emt 0:00:01]} O-O {[%emt 0:00:04]} 7. Be2 {[%emt 0:00:03]} c6 {[%emt 0:00:03]
} 8. Nc3 {[%emt 0:00:01]} Nc7 {[%emt 0:00:02]} 9. O-O {[%emt 0:00:02]} Nce8 {
[%emt 0:00:03]} 10. Nd2 {[%emt 0:00:08]} Nd6 {[%emt 0:00:04]} 11. Bd3 {[%emt 0:
00:08]} b6 {[%emt 0:00:04]} 12. e4 {[%emt 0:00:06]} dxe4 {[%emt 0:00:03]} 13.
Ndxe4 {[%emt 0:00:01]} Nf5 {[%emt 0:00:06]} 14. Be5 {[%emt 0:00:17]} Nxd4 {
[%emt 0:00:22]} 15. Ne2 {[%emt 0:00:19]} Nxe2+ {[%emt 0:00:09]} 16. Qxe2 {
[%emt 0:00:01]} Bb7 {[%emt 0:00:14]} 17. Rad1 {[%emt 0:00:01]} Qc8 {[%emt 0:00:
04]} 18. Nxf6+ {[%emt 0:00:03]} Bxf6 {[%emt 0:00:04]} 19. Bxf6 {[%emt 0:00:01]}
gxf6 {[%emt 0:00:01]} 20. Bxh7+ {[%emt 0:00:03]} Kxh7 {[%emt 0:00:05]} 21. Qh5+
{[%emt 0:00:01]} Kg7 {[%emt 0:00:09]} 22. Qg4+ {[%emt 0:00:01]} Kh7 {[%emt 0:
00:40]} 23. Rd3 {[%emt 0:00:01]} 1-0

[Event "FIDE Women World Blitz 2021"]
[Site "Warsaw"]
[Date "2021.12.29"]
[Round "2.25"]
[White "Da Silva, Cibele Florencio"]
[Black "Osmak, Yuliia"]
[Result "0-1"]
[ECO "B00"]
[WhiteElo "1405"]
[BlackElo "2198"]
[Annotator "NA"]
[PlyCount "128"]
[EventDate "2021.12.29"]
[EventType "swiss"]
[EventCountry "POL"]
[Tiebreak "Cut1 Buchholz"]
[SourceTitle "playchess.com"]
[Source "ChessBase"]
[SourceQuality "1"]
[TimeControl "180+2"]

1. e4 {[%emt 0:00:02]} Nc6 {[%emt 0:00:01]} 2. Nc3 {[%emt 0:00:01]} d6 {
[%emt 0:00:02]} 3. Bc4 {[%emt 0:00:03]} Nf6 {[%emt 0:00:02]} 4. Nf3 {[%emt 0:
00:02]} Bg4 {[%emt 0:00:16]} 5. d3 {[%emt 0:00:07]} e6 {[%emt 0:00:21]} 6. h3 {
[%emt 0:00:02]} Bxf3 {[%emt 0:00:11]} 7. Qxf3 {[%emt 0:00:03]} Ne5 {[%emt 0:00:
03]} 8. Qd1 {[%emt 0:00:05]} Nxc4 {[%emt 0:00:03]} 9. dxc4 {[%emt 0:00:03]} Qd7
{[%emt 0:00:04]} 10. O-O {[%emt 0:00:09]} Qc6 {[%emt 0:00:04]} 11. Qe2 {
[%emt 0:00:08]} Be7 {[%emt 0:00:06]} 12. b3 {[%emt 0:00:01]} O-O-O {[%emt 0:00:
26]} 13. Bg5 {[%emt 0:00:05]} h6 {[%emt 0:00:02]} 14. Bd2 {[%emt 0:00:13]} g5 {
[%emt 0:00:11]} 15. Rad1 {[%emt 0:00:04]} Rdg8 {[%emt 0:00:13]} 16. Qe3 {
[%emt 0:00:16]} Kb8 {[%emt 0:00:05]} 17. Nb5 {[%emt 0:00:03]} b6 {[%emt 0:00:
13]} 18. Bc3 {[%emt 0:00:08]} g4 {[%emt 0:00:18]} 19. h4 {[%emt 0:00:28]} e5 {
[%emt 0:00:13]} 20. Rde1 {[%emt 0:00:25]} g3 {[%emt 0:00:32]} 21. fxg3 {
[%emt 0:00:19]} Rh7 {[%emt 0:00:01]} 22. Rf3 {[%emt 0:00:11]} Rhg7 {[%emt 0:00:
05]} 23. Rd1 {[%emt 0:00:06]} Nxe4 {[%emt 0:00:02]} 24. Rd3 {[%emt 0:00:13]}
Nxc3 {[%emt 0:00:02]} 25. Nxc3 {[%emt 0:00:02]} f5 {[%emt 0:00:09]} 26. Nd5 {
[%emt 0:00:06]} e4 {[%emt 0:00:02]} 27. Nxe7 {[%emt 0:00:06]} Rxe7 {[%emt 0:00:
01]} 28. Rxf5 {[%emt 0:00:08]} exd3 {[%emt 0:00:02]} 29. Qxd3 {[%emt 0:00:07]}
Reg7 {[%emt 0:00:01]} 30. Rf3 {[%emt 0:00:01]} h5 {[%emt 0:00:02]} 31. Qe3 {
[%emt 0:00:02]} Kb7 {[%emt 0:00:01]} 32. Kh2 {[%emt 0:00:03]} Rg4 {[%emt 0:00:
02]} 33. a4 {[%emt 0:00:07]} a5 {[%emt 0:00:00]} 34. Qd3 {[%emt 0:00:01]} Qe4 {
[%emt 0:00:02]} 35. Qd5+ {[%emt 0:00:05]} Qxd5 {[%emt 0:00:01]} 36. cxd5 {
[%emt 0:00:01]} Rd4 {[%emt 0:00:02]} 37. Rd3 {[%emt 0:00:04]} Rxd3 {[%emt 0:00:
01]} 38. cxd3 {[%emt 0:00:01]} Rg4 {[%emt 0:00:01]} 39. Kg1 {[%emt 0:00:03]}
Rd4 {[%emt 0:00:01]} 40. Kf2 {[%emt 0:00:01]} Rxd3 {[%emt 0:00:01]} 41. g4 {
[%emt 0:00:02]} hxg4 {[%emt 0:00:03]} 42. h5 {[%emt 0:00:01]} Rxd5 {[%emt 0:00:
01]} 43. Kg3 {[%emt 0:00:01]} Rxh5 {[%emt 0:00:02]} 44. Kxg4 {[%emt 0:00:02]}
Rc5 {[%emt 0:00:01]} 45. Kf4 {[%emt 0:00:01]} Rc3 {[%emt 0:00:01]} 46. g4 {
[%emt 0:00:02]} Rxb3 {[%emt 0:00:01]} 47. g5 {[%emt 0:00:01]} Rb4+ {[%emt 0:00:
01]} 48. Kf5 {[%emt 0:00:01]} Rxa4 {[%emt 0:00:01]} 49. g6 {[%emt 0:00:01]} Ra1
{[%emt 0:00:01]} 50. g7 {[%emt 0:00:01]} Rg1 {[%emt 0:00:02]} 51. Kf6 {[%emt 0:
00:01]} a4 {[%emt 0:00:01]} 52. Kf7 {[%emt 0:00:02]} a3 {[%emt 0:00:01]} 53.
g8=Q Rxg8 54. Kxg8 {[%emt 0:00:07]} a2 {[%emt 0:00:03]} 55. Kf7 {[%emt 0:00:02]
} a1=Q {[%emt 0:00:03]} 56. Ke6 {[%emt 0:00:02]} b5 {[%emt 0:00:01]} 57. Kd7 {
[%emt 0:00:01]} b4 {[%emt 0:00:01]} 58. Ke6 {[%emt 0:00:02]} b3 {[%emt 0:00:01]
} 59. Kd7 {[%emt 0:00:01]} b2 {[%emt 0:00:01]} 60. Ke6 {[%emt 0:00:03]} b1=R {
[%emt 0:00:02]} 61. Kd7 {[%emt 0:00:02]} Qa4+ {[%emt 0:00:01]} 62. Kd8 {
[%emt 0:00:03]} Rh1 {[%emt 0:00:03]} 63. Ke7 {[%emt 0:00:03]} Rh7+ {[%emt 0:00:
02]} 64. Kd8 {[%emt 0:00:03]} Qd7# {[%emt 0:00:02]} 0-1

[Event "FIDE Women World Blitz 2021"]
[Site "Warsaw"]
[Date "2021.12.29"]
[Round "2.26"]
[White "Kashlinskaya, Alina"]
[Black "Zairbek kyzy, Begimai"]
[Result "1-0"]
[ECO "D36"]
[WhiteElo "2482"]
[BlackElo "1701"]
[Annotator "ChessBase"]
[PlyCount "76"]
[EventDate "2021.12.29"]
[EventType "swiss"]
[EventCountry "POL"]
[Tiebreak "Cut1 Buchholz"]
[SourceTitle "playchess.com"]
[Source "ChessBase"]
[SourceQuality "1"]
[TimeControl "180+2"]

1. d4 {[%emt 0:00:01]} d5 {[%emt 0:00:03]} 2. c4 {[%emt 0:00:01]} e6 {[%emt 0:
00:02]} 3. Nc3 {[%emt 0:00:01]} Nf6 {[%emt 0:00:01]} 4. cxd5 {[%emt 0:00:04]}
exd5 {[%emt 0:00:00]} 5. Bg5 {[%emt 0:00:03]} Be7 {[%emt 0:00:01]} 6. e3 {
[%emt 0:00:02]} c6 {[%emt 0:00:03]} 7. Bd3 {[%emt 0:00:02]} O-O {[%emt 0:00:02]
} 8. Qc2 {[%emt 0:00:03]} h6 {[%emt 0:00:01]} 9. Bh4 {[%emt 0:00:02]} Nbd7 {
[%emt 0:00:24]} 10. Nf3 {[%emt 0:00:02]} Re8 {[%emt 0:00:01]} 11. O-O {[%emt 0:
00:02]} Nf8 {[%emt 0:00:01]} 12. Rae1 {[%emt 0:00:09]} Ne4 {[%emt 0:00:12]} 13.
Bxe7 {[%emt 0:00:05]} Qxe7 {[%emt 0:00:01]} 14. Bxe4 {[%emt 0:00:08]} dxe4 {
[%emt 0:00:01]} 15. Nd2 {[%emt 0:00:01]} f5 {[%emt 0:00:26]} 16. f3 {[%emt 0:
00:02]} exf3 {[%emt 0:00:17]} 17. Nxf3 {[%emt 0:00:02]} Be6 {[%emt 0:00:21]}
18. e4 {[%emt 0:00:17]} fxe4 {[%emt 0:00:10]} 19. Rxe4 {[%emt 0:00:06]} Qd7 {
[%emt 0:00:07]} 20. Ne5 {[%emt 0:00:11]} Qc8 {[%emt 0:00:13]} 21. Ref4 {
[%emt 0:00:07]} c5 {[%emt 0:00:07]} 22. d5 {[%emt 0:00:14]} Bd7 {[%emt 0:00:16]
} 23. Ng6 {[%emt 0:00:08]} Bf5 {[%emt 0:00:21]} 24. Rxf5 {[%emt 0:00:25]} Nxg6
{[%emt 0:00:01]} 25. Ne4 {[%emt 0:00:38]} Qd7 {[%emt 0:00:07]} 26. Rf7 {
[%emt 0:00:13]} Qg4 {[%emt 0:00:06]} 27. Qc3 {[%emt 0:00:14]} Ne5 {[%emt 0:00:
01]} 28. Nd6 {[%emt 0:00:07]} Nxf7 {[%emt 0:00:19]} 29. Rxf7 {[%emt 0:00:13]}
Re2 {[%emt 0:00:01]} 30. g3 {[%emt 0:00:12]} Rd8 {[%emt 0:00:01]} 31. Nxb7 {
[%emt 0:00:05]} Rxd5 {[%emt 0:00:05]} 32. Rf1 {[%emt 0:00:01]} Qe4 {[%emt 0:00:
04]} 33. Qf3 {[%emt 0:00:03]} Qxf3 {[%emt 0:00:04]} 34. Rxf3 {[%emt 0:00:01]}
Rd1+ {[%emt 0:00:01]} 35. Rf1 {[%emt 0:00:00]} Rxf1+ {[%emt 0:00:01]} 36. Kxf1
{[%emt 0:00:01]} Rxb2 {[%emt 0:00:03]} 37. a4 {[%emt 0:00:01]} c4 {[%emt 0:00:
02]} 38. Nd6 {[%emt 0:00:03]} c3 {[%emt 0:00:01]} 1-0

[Event "FIDE Women World Blitz 2021"]
[Site "Warsaw"]
[Date "2021.12.29"]
[Round "2.27"]
[White "Semenova, Elena"]
[Black "Nurgali, Nazerke"]
[Result "1-0"]
[ECO "B10"]
[WhiteElo "2233"]
[BlackElo "2267"]
[Annotator "NA"]
[PlyCount "43"]
[EventDate "2021.12.29"]
[EventType "swiss"]
[EventCountry "POL"]
[Tiebreak "Cut1 Buchholz"]
[SourceTitle "playchess.com"]
[Source "ChessBase"]
[SourceQuality "1"]
[TimeControl "180+2"]

1. e4 {[%emt 0:00:01]} c6 {[%emt 0:00:00]} 2. Nf3 {[%emt 0:00:01]} d5 {[%emt 0:
00:01]} 3. d3 {[%emt 0:00:01]} g6 {[%emt 0:00:02]} 4. e5 {[%emt 0:00:03]} Bg7 {
[%emt 0:00:03]} 5. d4 {[%emt 0:00:02]} h5 {[%emt 0:00:02]} 6. h3 {[%emt 0:00:
03]} Nh6 {[%emt 0:00:01]} 7. c4 {[%emt 0:00:07]} e6 {[%emt 0:00:04]} 8. Nc3 {
[%emt 0:00:02]} Nf5 {[%emt 0:00:04]} 9. Bg5 {[%emt 0:00:09]} Qb6 {[%emt 0:00:
06]} 10. Qd2 {[%emt 0:00:03]} O-O {[%emt 0:00:11]} 11. c5 {[%emt 0:00:08]} Qc7
{[%emt 0:00:03]} 12. g4 {[%emt 0:00:03]} Ne7 {[%emt 0:00:11]} 13. gxh5 {
[%emt 0:00:10]} gxh5 {[%emt 0:00:01]} 14. Bd3 {[%emt 0:00:01]} b6 {[%emt 0:00:
41]} 15. Bh6 {[%emt 0:00:02]} Ng6 {[%emt 0:00:15]} 16. Rg1 {[%emt 0:00:16]} Kh7
{[%emt 0:00:25]} 17. Ng5+ {[%emt 0:00:24]} Kh8 {[%emt 0:00:09]} 18. Nxf7+ {
[%emt 0:00:10]} Qxf7 {[%emt 0:00:06]} 19. Bxg7+ {[%emt 0:00:06]} Qxg7 {[%emt 0:
00:09]} 20. Rxg6 {[%emt 0:00:02]} Qf7 {[%emt 0:00:28]} 21. Qh6+ {[%emt 0:00:04]
} Qh7 {[%emt 0:00:11]} 22. Qxf8+ {[%emt 0:00:02]} 1-0

[Event "FIDE Women World Blitz 2021"]
[Site "Warsaw"]
[Date "2021.12.29"]
[Round "2.28"]
[White "Lagno, Kateryna"]
[Black "Pourkashiyan, Atousa"]
[Result "1/2-1/2"]
[ECO "C42"]
[WhiteElo "2550"]
[BlackElo "2322"]
[Annotator "ChessBase"]
[PlyCount "124"]
[EventDate "2021.12.29"]
[EventType "swiss"]
[EventCountry "POL"]
[Tiebreak "Cut1 Buchholz"]
[SourceTitle "playchess.com"]
[Source "ChessBase"]
[SourceQuality "1"]
[TimeControl "180+2"]

1. e4 {[%emt 0:00:01]} e5 {[%emt 0:00:01]} 2. Nf3 {[%emt 0:00:01]} Nf6 {
[%emt 0:00:01]} 3. Nxe5 {[%emt 0:00:02]} d6 {[%emt 0:00:01]} 4. Nf3 {[%emt 0:
00:01]} Nxe4 {[%emt 0:00:01]} 5. d4 {[%emt 0:00:01]} d5 {[%emt 0:00:01]} 6. Bd3
{[%emt 0:00:01]} Be7 {[%emt 0:00:02]} 7. O-O {[%emt 0:00:07]} Nc6 {[%emt 0:00:
01]} 8. Nbd2 {[%emt 0:00:08]} Nf6 {[%emt 0:00:23]} 9. c3 {[%emt 0:00:04]} O-O {
[%emt 0:00:04]} 10. h3 {[%emt 0:00:02]} Re8 {[%emt 0:00:15]} 11. Re1 {[%emt 0:
00:03]} Bd6 {[%emt 0:00:24]} 12. Rxe8+ {[%emt 0:00:06]} Qxe8 {[%emt 0:00:01]}
13. Qc2 {[%emt 0:00:02]} Ne7 {[%emt 0:00:18]} 14. Nf1 {[%emt 0:00:10]} Ng6 {
[%emt 0:00:14]} 15. Ng3 {[%emt 0:00:02]} Bd7 {[%emt 0:00:09]} 16. Bg5 {[%emt 0:
00:04]} Be7 {[%emt 0:00:09]} 17. Re1 {[%emt 0:00:02]} Qf8 {[%emt 0:00:22]} 18.
Ne5 {[%emt 0:00:04]} Rd8 {[%emt 0:00:23]} 19. Nf5 {[%emt 0:00:12]} Bxf5 20.
Bxf5 {[%emt 0:00:01]} Nxe5 {[%emt 0:00:21]} 21. dxe5 {[%emt 0:00:02]} Ne4 {
[%emt 0:00:02]} 22. Bxe7 Qxe7 {[%emt 0:00:01]} 23. Bxe4 {[%emt 0:00:18]} dxe4 {
[%emt 0:00:01]} 24. Qxe4 {[%emt 0:00:01]} c6 {[%emt 0:00:01]} 25. Re2 {[%emt 0:
00:31]} h6 {[%emt 0:00:01]} 26. Kh2 {[%emt 0:00:02]} Qd7 {[%emt 0:00:02]} 27.
f4 {[%emt 0:00:18]} Qd5 {[%emt 0:00:02]} 28. Qxd5 {[%emt 0:00:07]} Rxd5 {
[%emt 0:00:01]} 29. Kg3 {[%emt 0:00:02]} Kf8 {[%emt 0:00:11]} 30. Kf3 {[%emt 0:
00:01]} h5 {[%emt 0:00:08]} 31. Ke3 {[%emt 0:00:10]} Rd1 {[%emt 0:00:06]} 32.
Rd2 {[%emt 0:00:05]} Rb1 {[%emt 0:00:03]} 33. g4 {[%emt 0:00:08]} hxg4 {
[%emt 0:00:02]} 34. hxg4 {[%emt 0:00:01]} g6 {[%emt 0:00:00]} 35. f5 {[%emt 0:
00:23]} gxf5 {[%emt 0:00:01]} 36. gxf5 {[%emt 0:00:00]} Ke7 {[%emt 0:00:01]}
37. Rf2 {[%emt 0:00:06]} Re1+ {[%emt 0:00:05]} 38. Kf4 {[%emt 0:00:01]} Ra1 {
[%emt 0:00:06]} 39. a3 {[%emt 0:00:01]} Rd1 {[%emt 0:00:03]} 40. Re2 {[%emt 0:
00:04]} Rf1+ {[%emt 0:00:03]} 41. Ke4 {[%emt 0:00:01]} Rd1 {[%emt 0:00:02]} 42.
Rh2 {[%emt 0:00:34]} Re1+ {[%emt 0:00:01]} 43. Kd4 {[%emt 0:00:00]} Rf1 {
[%emt 0:00:02]} 44. Rh5 {[%emt 0:00:06]} Rd1+ {[%emt 0:00:05]} 45. Kc4 {
[%emt 0:00:01]} Rd5 {[%emt 0:00:06]} 46. e6 {[%emt 0:00:06]} fxe6 {[%emt 0:00:
01]} 47. Rh7+ {[%emt 0:00:01]} Kd6 {[%emt 0:00:03]} 48. fxe6 {[%emt 0:00:03]}
b5+ {[%emt 0:00:01]} 49. Kb3 {[%emt 0:00:02]} Kxe6 {[%emt 0:00:02]} 50. Rxa7 {
[%emt 0:00:02]} Kd6 {[%emt 0:00:01]} 51. Kb4 {[%emt 0:00:04]} Rh5 {[%emt 0:00:
02]} 52. b3 {[%emt 0:00:04]} Rh4+ {[%emt 0:00:01]} 53. c4 {[%emt 0:00:02]} bxc4
{[%emt 0:00:03]} 54. bxc4 {[%emt 0:00:00]} Rh1 {[%emt 0:00:01]} 55. c5+ {
[%emt 0:00:01]} Ke6 {[%emt 0:00:02]} 56. Rc7 {[%emt 0:00:02]} Rb1+ {[%emt 0:00:
02]} 57. Ka4 {[%emt 0:00:00]} Kd5 {[%emt 0:00:01]} 58. Rh7 {[%emt 0:00:08]}
Kxc5 {[%emt 0:00:01]} 59. Rh5+ {[%emt 0:00:01]} Kb6 {[%emt 0:00:00]} 60. Rh8 {
[%emt 0:00:04]} Ka7 {[%emt 0:00:04]} 61. Rh6 {[%emt 0:00:02]} Kb6 {[%emt 0:00:
01]} 62. Rh8 {[%emt 0:00:02]} Ka7 {[%emt 0:00:01]} 1/2-1/2

[Event "FIDE Women World Blitz 2021"]
[Site "Warsaw"]
[Date "2021.12.29"]
[Round "2.29"]
[White "Kosteniuk, Alexandra"]
[Black "Doluhanova, Evgeniya"]
[Result "1-0"]
[ECO "C60"]
[WhiteElo "2518"]
[BlackElo "2237"]
[Annotator "ChessBase"]
[PlyCount "65"]
[EventDate "2021.12.29"]
[EventType "swiss"]
[EventCountry "POL"]
[Tiebreak "Cut1 Buchholz"]
[SourceTitle "playchess.com"]
[Source "ChessBase"]
[SourceQuality "1"]
[TimeControl "180+2"]

1. e4 {[%emt 0:00:01]} e5 {[%emt 0:00:01]} 2. Nf3 {[%emt 0:00:02]} Nc6 {
[%emt 0:00:02]} 3. Bb5 {[%emt 0:00:01]} Nf6 {[%emt 0:00:01]} 4. d4 {[%emt 0:00:
03]} Nxd4 {[%emt 0:00:15]} 5. Nxd4 {[%emt 0:00:02]} exd4 {[%emt 0:00:01]} 6.
Qxd4 {[%emt 0:00:05]} c6 {[%emt 0:00:13]} 7. Bc4 {[%emt 0:00:01]} d5 {[%emt 0:
00:10]} 8. exd5 {[%emt 0:00:05]} Nxd5 {[%emt 0:00:05]} 9. O-O {[%emt 0:00:04]}
Be6 {[%emt 0:00:05]} 10. Re1 {[%emt 0:00:14]} Be7 {[%emt 0:00:49]} 11. Qxg7 {
[%emt 0:00:07]} Bf6 {[%emt 0:00:00]} 12. Qg3 {[%emt 0:00:08]} Qa5 {[%emt 0:00:
10]} 13. Bd2 {[%emt 0:00:32]} Qc5 {[%emt 0:00:14]} 14. Bxd5 {[%emt 0:00:02]}
Qxd5 {[%emt 0:00:03]} 15. Bc3 {[%emt 0:00:01]} Qf5 {[%emt 0:00:21]} 16. Bxf6 {
[%emt 0:00:16]} Qxf6 {[%emt 0:00:02]} 17. Nc3 {[%emt 0:00:02]} O-O-O {[%emt 0:
00:04]} 18. Ne4 {[%emt 0:00:01]} Qd4 {[%emt 0:00:20]} 19. c3 {[%emt 0:00:07]}
Qd5 {[%emt 0:00:07]} 20. Qg5 {[%emt 0:00:21]} Rhg8 {[%emt 0:00:12]} 21. Qxd5 {
[%emt 0:00:02]} Bxd5 {[%emt 0:00:01]} 22. Ng3 {[%emt 0:00:07]} f5 {[%emt 0:00:
08]} 23. f4 {[%emt 0:00:02]} Be4 {[%emt 0:00:04]} 24. Nxe4 {[%emt 0:00:07]}
fxe4 {[%emt 0:00:02]} 25. Rad1 {[%emt 0:00:06]} Rde8 {[%emt 0:00:07]} 26. g3 {
[%emt 0:00:04]} h5 {[%emt 0:00:03]} 27. Kf2 {[%emt 0:00:02]} h4 {[%emt 0:00:03]
} 28. Rd4 {[%emt 0:00:02]} hxg3+ {[%emt 0:00:03]} 29. hxg3 {[%emt 0:00:01]} e3+
{[%emt 0:00:01]} 30. Kf3 {[%emt 0:00:05]} Rh8 {[%emt 0:00:10]} 31. Rxe3 {
[%emt 0:00:03]} Rxe3+ 32. Kxe3 {[%emt 0:00:01]} Rh2 {[%emt 0:00:03]} 33. Rd2 {
[%emt 0:00:00]} 1-0